bitfinex/quotes_ETHUSD_20250726
["timestamp","ask_amount","ask_price","bid_price","bid_amount"]
[1753545175498,3.001,3741.4,3741.3,4.14692066]
[1753545175698,3.001,3741.4,3741.3,2.39065295]
[1753545177196,3.001,3741.4,3741.3,1.7184]
[1753545178301,3.001,3741.4,3741.1,3.13305899]
[1753545178502,3.001,3741.4,3741.2,0.9166]
[1753545178802,3.001,3741.4,3741.1,3.13305899]
[1753545179230,3.001,3741.4,3741.1,4.04965899]
[1753545179399,0.552,3741.4,3741.3,2.67286771]
[1753545179726,0.552,3741.4,3741.3,3.58946771]
[1753545179727,2.999,3741.4,3741.3,3.58946771]
[1753545180229,2.999,3741.4,3741.2,0.75255844]
[1753545180408,2.999,3741.4,3741.1,0.9166]
[1753545180726,2.999,3741.4,3741.1,3.58959655]
[1753545182135,2.999,3741.4,3741.2,2.67292543]
[1753545182334,2.999,3741.4,3741.2,3.58952543]
[1753545182542,2.999,3741.4,3741.3,3.58946771]
[1753545183714,2.448,3741.4,3741.3,4.29589537]
[1753545185429,2.448,3741.4,3741.3,3.58946771]
[1753545185943,2.448,3741.4,3741.3,0.9166]
[1753545186232,2.448,3741.4,3741.2,2.67292174]
[1753545186421,2.448,3741.4,3741.3,2.67286771]
[1753545186827,2.448,3741.4,3741.3,3.15506771]
[1753545188109,2.448,3741.4,3741.3,0.4822]
[1753545188437,2.448,3741.4,3741.2,3.10733452]
[1753545188605,2.448,3741.4,3741.2,3.58953452]
[1753545188806,2.448,3741.4,3741.3,2.67286771]
[1753545190939,0.002,3741.4,3741.3,2.67286771]
[1753545191108,2.446,3741.4,3741.3,2.67286771]
[1753545191969,2.446,3741.4,3741.2,0.4822]
[1753545192252,1.20151084,3741.3,3740.9,2.67409941]
[1753545192476,0.7574,3741.2,3740.9,0.001]
[1753545192633,0.71701263,3741.1,3740.9,0.001]
[1753545192822,2.994,3741.0,3740.9,0.001]
[1753545196173,3.51191352,3741.0,3740.9,0.001]
[1753545196576,7.71941352,3741.0,3740.9,0.001]
[1753545196871,10.35908206,3741.0,3740.9,0.001]
[1753545197163,7.686,3741.0,3740.9,0.001]
[1753545198055,7.2439,3741.0,3740.9,0.001]
[1753545199478,9.91698206,3741.0,3740.9,0.001]
[1753545199772,10.35908206,3741.0,3740.9,0.001]
[1753545200335,5.994,3741.0,3740.9,0.001]
[1753545201877,6.4785,3741.0,3740.9,0.001]
[1753545204078,4.0345,3741.0,3740.9,0.001]
[1753545204278,5.995,3741.0,3740.9,0.001]
[1753545205480,6.4795,3741.0,3740.9,0.001]
[1753545206048,6.9216,3741.0,3740.9,0.001]
[1753545206470,6.4795,3741.0,3740.9,0.001]
[1753545209181,9.59468206,3741.0,3740.9,0.001]
[1753545209399,9.15258206,3741.0,3740.9,0.001]
[1753545209614,9.59468206,3741.0,3740.9,0.001]
[1753545211506,6.9216,3741.0,3740.9,0.001]
[1753545211711,9.59468206,3741.0,3740.9,0.001]
[1753545212713,5.992,3741.0,3740.9,0.001]
[1753545212879,3.55,3741.0,3740.9,0.9358]
[1753545213078,5.992,3741.0,3740.9,0.9358]
[1753545215613,5.991,3741.0,3740.9,0.4878]
[1753545215819,5.991,3741.0,3740.9,0.001]
[1753545216941,3.55,3741.0,3740.9,0.001]
[1753545217142,5.991,3741.0,3740.9,0.9358]
[1753545217450,6.4755,3741.0,3740.9,0.001]
[1753545218108,39.59068206,3741.0,3740.9,0.001]
[1753545218314,40.35048206,3741.0,3740.9,0.001]
[1753545220012,37.6774,3741.0,3740.9,0.001]
[1753545220408,40.35048206,3741.0,3740.9,0.001]
[1753545220715,39.90838206,3741.0,3740.9,0.001]
[1753545221455,37.2353,3741.0,3740.9,0.001]
[1753545221768,9.90838206,3741.0,3740.9,0.001]
[1753545221937,39.90838206,3741.0,3740.9,0.001]
[1753545222138,37.2353,3741.0,3740.9,0.001]
[1753545222338,35.991,3741.0,3740.9,0.001]
[1753545223158,33.55,3741.0,3740.9,0.001]
[1753545223358,35.991,3741.0,3740.9,0.001]
[1753545223670,38.66408206,3741.0,3740.9,0.001]
[1753545223840,39.56658206,3741.0,3740.9,0.001]
[1753545224341,39.13658206,3741.0,3740.9,0.001]
[1753545224666,39.56658206,3741.0,3740.9,0.001]
[1753545226358,9.56658206,3741.0,3740.9,0.001]
[1753545226551,39.56658206,3741.0,3740.9,0.001]
[1753545228170,40.33308206,3741.0,3740.9,0.001]
[1753545233480,10.33308206,3741.0,3740.9,0.001]
[1753545233686,40.33308206,3741.0,3740.9,0.001]
[1753545234485,10.33308206,3741.0,3740.9,0.001]
[1753545234658,36.22315351,3740.9,3740.8,1e-08]
[1753545234862,38.31160031,3740.9,3740.8,1e-08]
[1753545235380,36.22365381,3740.2,3740.1,0.001]
[1753545235593,43.96822962,3740.2,3740.1,0.001]
[1753545235889,44.87072962,3740.2,3740.1,0.001]
[1753545236381,44.44072962,3740.2,3740.1,0.001]
[1753545236886,36.35725381,3740.2,3740.1,0.001]
[1753545237070,8.79825381,3740.2,3740.1,0.9374]
[1753545237645,6.1246,3740.2,3740.1,0.9374]
[1753545240877,8.79825381,3740.2,3740.1,0.4913]
[1753545241083,10.02635381,3740.2,3740.1,0.001]
[1753545241389,40.45635381,3740.2,3740.1,0.001]
[1753545242100,40.02635381,3740.2,3740.1,0.001]
[1753545242694,40.45635381,3740.2,3740.1,0.001]
[1753545242891,10.45635381,3740.2,3740.1,0.001]
[1753545243096,40.45635381,3740.2,3740.1,0.001]
[1753545243884,40.02635381,3740.2,3740.1,0.001]
[1753545244568,37.58535381,3740.2,3740.1,0.001]
[1753545244771,40.02635381,3740.2,3740.1,0.001]
[1753545245175,40.02858829,3740.2,3740.1,0.001]
[1753545245891,38.80048829,3740.2,3740.1,0.4913]
[1753545246101,38.80048829,3740.2,3740.1,0.9374]
[1753545246662,36.12683448,3740.2,3740.1,0.9374]
[1753545246862,2.57783448,3740.2,3740.1,0.9374]
[1753545247098,3.12783448,3740.2,3740.1,1.743]
[1753545247674,6.12783448,3740.2,3740.1,1.743]
[1753545249478,6.12783448,3740.2,3740.1,0.001]
[1753545250274,6.12783448,3740.2,3740.1,0.9374]
[1753545250475,40.08608829,3740.2,3740.1,0.001]
[1753545251089,39.61358829,3740.2,3740.1,0.001]
[1753545251324,38.80148829,3740.2,3740.1,0.001]
[1753545251494,3.68583448,3740.2,3740.1,0.9374]
[1753545251806,3.13583448,3740.2,3740.1,0.9374]
[1753545252012,5.57983448,3740.2,3740.1,0.9374]
[1753545252211,6.12983448,3740.2,3740.1,0.9374]
[1753545253391,3.68583448,3740.2,3740.1,0.9374]
[1753545253591,6.12983448,3740.2,3740.1,0.9374]
[1753545254993,6.12983448,3740.2,3740.1,0.001]
[1753545255198,6.12983448,3740.2,3740.1,0.9228]
[1753545256818,6.12883448,3740.2,3740.1,3.5965253]
[1753545257184,3.68583448,3740.2,3740.1,3.5965253]
[1753545257404,0.00223448,3740.2,3740.1,5.07482483]
[1753545259722,0.00223448,3740.2,3740.1,4.3691253]
[1753545259723,2.44723448,3740.2,3740.1,4.3691253]
[1753545261884,2.445,3740.2,3740.1,4.3691253]
[1753545262134,0.55,3740.8,3740.5,3.47967456]
[1753545262432,2.445,3740.7,3740.6,0.9218]
[1753545263016,2.445,3740.7,3740.6,3.5951679]
[1753545263943,2.445,3740.7,3740.6,0.9218]
[1753545264658,0.002,3741.4,3740.8,2.67322497]
[1753545264953,2.5786,3741.3,3740.8,3.14352497]
[1753545265115,2.5786,3741.3,3740.9,3.14344427]
[1753545265322,2.5786,3741.3,3740.9,3.59494427]
[1753545265635,2.5786,3741.3,3740.9,0.9218]
[1753545265837,2.5786,3741.3,3740.8,2.80680352]
[1753545266047,2.5786,3741.3,3740.8,3.72860352]
[1753545266244,0.55,3741.2,3740.8,0.9218]
[1753545266448,0.55,3740.9,3740.6,0.7899]
[1753545266655,2.447,3740.8,3740.6,3.46324678]
[1753545266861,2.447,3740.8,3740.7,3.59509644]
[1753545267163,2.447,3740.8,3740.7,4.31429617]
[1753545267740,0.55,3741.0,3740.7,4.31429617]
[1753545268057,2.447,3740.8,3740.7,3.39249617]
[1753545268367,0.55,3741.0,3740.8,2.67315948]
[1753545268539,2.447,3740.9,3740.8,2.67315948]
[1753545268922,2.447,3740.9,3740.6,0.7899]
[1753545269145,2.447,3740.8,3740.7,3.59508851]
[1753545269752,0.55,3741.0,3740.8,2.67319946]
[1753545269937,0.1336,3741.1,3740.8,2.67319946]
[1753545269938,2.447,3740.9,3740.8,2.67319946]
[1753545270136,2.447,3740.9,3740.8,3.12469946]
[1753545270565,2.447,3740.9,3740.8,3.59499946]
[1753545271260,2.447,3740.9,3740.7,2.67329151]
[1753545271465,2.446,3740.8,3740.7,2.67329151]
[1753545271961,2.446,3740.8,3740.7,2.67329644]
[1753545272327,2.446,3740.8,3740.7,3.14359644]
[1753545272527,2.446,3740.8,3740.7,2.67329644]
[1753545273533,2.446,3740.8,3740.7,3.59509644]
[1753545274358,2.445,3740.8,3740.7,3.59509644]
[1753545274860,2.445,3740.8,3740.6,0.7899]
[1753545274861,0.55,3740.7,3740.2,3.47285381]
[1753545275028,0.55,3740.5,3740.1,0.4713]
[1753545275361,2.95321888,3740.4,3740.1,2.67470238]
[1753545275660,2.47941888,3740.4,3740.2,2.67364988]
[1753545275956,2.446,3740.4,3740.2,2.67364988]
[1753545276165,0.6836,3740.5,3740.1,3.59650411]
[1753545276321,0.6836,3740.5,3740.3,2.67353269]
[1753545276527,0.1336,3740.5,3740.4,2.67351085]
[1753545276749,0.002,3740.9,3740.5,3.47263679]
[1753545276750,2.445,3740.6,3740.5,3.47263679]
[1753545276934,2.445,3740.6,3740.5,3.92413679]
[1753545277264,2.445,3740.6,3740.5,4.39443679]
[1753545277449,2.445,3740.6,3740.5,5.24819364]
[1753545278835,0.552,3740.9,3740.8,2.67322497]
[1753545279173,2.997,3740.9,3740.8,2.67322497]
[1753545279470,2.997,3740.9,3740.7,2.67328301]
[1753545279764,2.997,3740.9,3740.7,3.59508301]
[1753545280672,2.997,3740.9,3740.7,0.4703]
[1753545280837,3.4708,3740.9,3740.5,0.9328]
[1753545281039,0.4738,3740.8,3740.5,0.9328]
[1753545281384,0.4738,3740.7,3740.5,0.1336]
[1753545281610,0.4738,3740.7,3740.5,2.80702347]
[1753545282368,3.4477,3740.9,3740.6,2.6733679]
[1753545282539,0.4507,3740.8,3740.5,0.1336]
[1753545283160,0.4507,3740.8,3740.5,2.80700981]
[1753545283469,1.0007,3740.7,3740.2,0.8048]
[1753545283671,0.48411709,3740.6,3740.2,2.67361927]
[1753545283987,0.61771709,3740.6,3740.2,2.67361178]
[1753545284386,0.61771709,3740.6,3740.3,2.67356117]
[1753545284677,0.16701709,3740.6,3740.3,2.67356117]
[1753545285092,0.61771709,3740.6,3740.2,3.167335]
[1753545285885,1.4386,3740.5,3740.1,0.001]
[1753545286082,0.55,3740.3,3740.1,0.001]
[1753545286286,0.55,3740.3,3740.1,2.67467422]
[1753545286493,2.444,3740.2,3740.1,0.001]
[1753545286789,2.444,3740.2,3740.1,2.6747253]
[1753545287846,2.444,3740.2,3740.1,3.1684253]
[1753545289454,0.55,3740.3,3740.2,2.67365381]
[1753545289806,2.993,3740.3,3740.2,3.63975381]
[1753545292276,2.993,3740.3,3740.2,0.9661]
[1753545292595,2.993,3740.3,3740.1,0.001]
[1753545292596,2.993,3740.3,3740.1,2.67471969]
[1753545292995,2.993,3740.3,3740.1,0.001]
[1753545294209,2.993,3740.3,3740.2,2.67365381]
[1753545295682,2.993,3740.3,3740.2,3.16735381]
[1753545296171,2.993,3740.3,3740.2,2.67365381]
[1753545297417,2.993,3740.3,3740.1,2.6747109]
[1753545298280,2.993,3740.3,3740.2,2.67365381]
[1753545298887,2.992,3740.3,3740.2,3.63975381]
[1753545300308,2.992,3740.3,3740.2,2.67365381]
[1753545300681,2.992,3740.3,3740.1,0.001]
[1753545301018,2.992,3740.3,3740.2,2.67365381]
[1753545304134,2.992,3740.3,3740.1,2.67470732]
[1753545305718,2.992,3740.3,3740.1,0.001]
[1753545305719,3.4427,3740.3,3740.1,0.001]
[1753545306921,3.4427,3740.3,3740.1,2.67470766]
[1753545307625,3.4427,3740.3,3740.1,0.001]
[1753545307792,3.4427,3740.3,3740.1,2.67466646]
[1753545308928,3.4427,3740.3,3740.1,0.001]
[1753545310130,3.4427,3740.3,3740.1,2.67470935]
[1753545310835,3.4427,3740.3,3740.1,0.001]
[1753545311032,1.0007,3740.2,3740.1,0.001]
[1753545311327,1.60562067,3740.2,3740.1,0.001]
[1753545314734,7.30127448,3740.2,3740.1,0.001]
[1753545314935,7.26785381,3740.2,3740.1,0.001]
[1753545315136,38.09185381,3740.2,3740.1,0.001]
[1753545315939,38.34237057,3740.2,3740.1,0.001]
[1753545316340,38.09185381,3740.2,3740.1,0.001]
[1753545316808,38.34218607,3740.2,3740.1,0.001]
[1753545317009,38.09185381,3740.2,3740.1,0.001]
[1753545318208,38.34203548,3740.2,3740.1,0.001]
[1753545318539,38.09185381,3740.2,3740.1,0.001]
[1753545318840,40.53385381,3740.2,3740.1,0.001]
[1753545320741,38.10715381,3740.2,3740.1,0.001]
[1753545320940,36.3996,3740.2,3740.1,0.001]
[1753545321142,36.8656,3740.2,3740.1,0.001]
[1753545321441,33.1336,3740.2,3740.1,0.001]
[1753545321807,33.1256,3740.2,3740.1,0.001]
[1753545322008,36.1256,3740.2,3740.1,0.001]
[1753545323049,39.26525381,3740.2,3740.1,0.001]
[1753545323258,39.72515381,3740.2,3740.1,0.001]
[1753545324218,39.26525381,3740.2,3740.1,0.001]
[1753545324928,36.5916,3740.2,3740.1,0.001]
[1753545325849,39.26525381,3740.2,3740.1,0.001]
[1753545326548,36.1256,3740.2,3740.1,0.001]
[1753545326729,36.1256,3740.2,3740.1,0.4683]
[1753545327353,36.1256,3740.2,3740.1,0.9269]
[1753545327513,33.6836,3740.2,3740.1,0.9269]
[1753545327719,36.1256,3740.2,3740.1,0.9269]
[1753545329550,36.1256,3740.2,3740.1,0.001]
[1753545329727,40.39595381,3740.2,3740.1,0.001]
[1753545330754,37.49405381,3740.2,3740.1,0.001]
[1753545330956,3.55,3740.2,3740.1,0.9269]
[1753545331256,5.992,3740.2,3740.1,0.9269]
[1753545331554,3.55,3740.2,3740.1,0.9269]
[1753545331756,5.992,3740.2,3740.1,0.9269]
[1753545332653,3.55,3740.2,3740.1,0.9269]
[1753545332859,0.002,3740.8,3740.2,0.7581]
[1753545333025,2.442,3740.7,3740.2,0.7581]
[1753545333354,3.0,3740.6,3740.3,0.9259]
[1753545333655,2.992,3740.5,3740.4,0.9259]
[1753545339864,3.1256,3740.5,3740.4,0.9259]
[1753545342664,2.5756,3740.5,3740.4,0.9259]
[1753545342872,2.442,3740.5,3740.4,0.9259]
[1753545343236,2.442,3740.5,3740.4,3.59941085]
[1753545343564,0.55,3740.7,3740.5,2.67342276]
[1753545343767,0.55,3740.7,3740.6,3.6084679]
[1753545343964,2.991,3740.7,3740.4,3.10930906]
[1753545344192,0.55,3740.7,3740.6,0.4997]
[1753545344355,0.002,3740.8,3740.7,0.7508]
[1753545344534,2.443,3740.8,3740.7,1.6859]
[1753545346378,0.002,3740.8,3740.7,4.35919644]
[1753545346683,2.443,3740.8,3740.7,4.49279644]
[1753545346879,2.443,3740.8,3740.7,2.53612312]
[1753545347042,2.443,3740.8,3740.7,1.8195]
[1753545348377,2.393,3740.8,3740.7,1.3198]
[1753545348566,2.393,3740.8,3740.7,1.8195]
[1753545349084,2.393,3740.8,3740.7,4.49279644]
[1753545349956,2.393,3740.8,3740.7,0.8844]
[1753545350183,2.393,3740.8,3740.7,0.7508]
[1753545350382,2.393,3740.8,3740.7,1.2505]
[1753545350681,2.393,3740.8,3740.7,1.6859]
[1753545354454,2.393,3740.8,3740.7,4.35919644]
[1753545356766,0.002,3740.9,3740.8,2.67322497]
[1753545356974,2.443,3740.9,3740.8,3.60762497]
[1753545357172,2.443,3740.9,3740.8,4.54272497]
[1753545359561,0.002,3740.9,3740.8,4.54272497]
[1753545359761,0.002,3740.9,3740.8,5.33599461]
[1753545361587,0.002,3740.9,3740.8,7.77699461]
[1753545362173,0.002,3740.9,3740.8,4.40089461]
[1753545362378,0.002,3740.9,3740.8,5.20239461]
[1753545363193,0.4677,3740.9,3740.8,4.26729461]
[1753545363574,0.002,3740.9,3740.8,4.26729461]
[1753545364385,0.002,3740.9,3740.8,5.20239461]
[1753545368011,0.002,3740.9,3740.8,4.26729461]
[1753545371194,0.002,3740.9,3740.8,4.76699461]
[1753545372321,0.002,3740.9,3740.8,4.90059461]
[1753545374700,0.002,3740.9,3740.8,5.36149461]
[1753545377200,0.002,3740.9,3740.8,4.40089461]
[1753545377613,0.002,3740.9,3740.8,5.35099461]
[1753545385508,0.002,3740.9,3740.8,5.35199461]
[1753545387424,0.474,3740.9,3740.8,3.60109461]
[1753545388207,0.9326,3740.9,3740.8,2.80782497]
[1753545388727,0.474,3740.9,3740.8,2.80782497]
[1753545392123,0.002,3741.4,3741.3,2.67286771]
[1753545392310,0.002,3741.4,3741.3,3.61936771]
[1753545392852,0.9326,3741.4,3741.3,2.80646771]
[1753545393146,0.474,3741.4,3741.3,2.80646771]
[1753545393547,0.9326,3741.4,3741.3,2.67286771]
[1753545395126,0.55,3741.3,3741.0,2.67304855]
[1753545395335,0.9306,3741.2,3741.0,2.67304855]
[1753545395536,0.9306,3741.1,3741.0,2.67304855]
[1753545397015,0.9306,3741.1,3740.9,2.80675002]
[1753545397222,0.472,3741.0,3740.9,0.1336]
[1753545397420,0.9306,3741.0,3740.9,0.1336]
[1753545397828,0.4586,3741.0,3740.9,0.1336]
[1753545398033,0.9306,3741.0,3740.9,0.1336]
[1753545398452,1.698,3741.0,3740.8,0.1346]
[1753545398654,0.9306,3740.9,3740.8,0.1346]
[1753545399358,1.4806,3740.9,3740.8,0.001]
[1753545399522,1.6142,3740.9,3740.8,0.001]
[1753545400956,2.39707024,3740.9,3740.8,0.001]
[1753545402437,2.36365583,3740.9,3740.8,0.001]
[1753545402637,2.39707024,3740.9,3740.8,0.001]
[1753545403144,5.07022375,3740.9,3740.8,0.001]
[1753545403456,8.78710934,3740.9,3740.8,0.001]
[1753545404660,8.31510934,3740.9,3740.8,0.001]
[1753545404964,8.77130934,3740.9,3740.8,0.001]
[1753545407163,43.00578515,3740.9,3740.8,0.001]
[1753545407668,43.00778515,3740.9,3740.8,0.001]
[1753545410334,13.00778515,3740.9,3740.8,0.001]
[1753545410534,43.00778515,3740.9,3740.8,0.001]
[1753545417264,43.14138515,3740.9,3740.8,0.001]
[1753545419784,13.14138515,3740.9,3740.8,0.001]
[1753545419982,43.14138515,3740.9,3740.8,0.001]
[1753545420990,13.14138515,3740.9,3740.8,0.001]
[1753545421353,43.14138515,3740.9,3740.8,0.001]
[1753545423790,45.58138515,3740.9,3740.8,0.001]
[1753545427677,40.29850934,3740.9,3740.8,0.001]
[1753545428608,39.54820934,3740.9,3740.8,0.001]
[1753545429109,40.00440934,3740.9,3740.8,0.001]
[1753545429310,45.59378515,3740.9,3740.8,0.001]
[1753545431410,15.59378515,3740.9,3740.8,0.001]
[1753545431602,45.59378515,3740.9,3740.8,0.001]
[1753545433478,45.55978515,3740.9,3740.8,0.001]
[1753545433687,45.81005193,3740.9,3740.8,0.001]
[1753545433889,45.81005193,3740.9,3740.6,0.001]
[1753545433890,33.22329644,3740.7,3740.6,0.001]
[1753545434096,39.55909644,3740.7,3740.6,0.001]
[1753545434297,39.8094498,3740.7,3740.6,0.001]
[1753545434493,40.7151498,3740.7,3740.6,0.001]
[1753545434915,40.7151498,3740.7,3740.6,1e-08]
[1753545435213,41.61488288,3740.7,3740.6,1e-08]
[1753545435625,41.46460563,3740.7,3740.6,1e-08]
[1753545436011,40.55890563,3740.7,3740.6,1e-08]
[1753545436322,41.17922482,3740.7,3740.6,1e-08]
[1753545436928,37.56890563,3740.7,3740.6,1e-08]
[1753545437130,40.00907169,3740.7,3740.6,0.92790001]
[1753545437427,39.79687169,3740.7,3740.6,0.92790001]
[1753545438520,9.79687169,3740.7,3740.6,0.92790001]
[1753545438728,39.79687169,3740.7,3740.6,0.92790001]
[1753545440132,39.79687169,3740.7,3740.6,1e-08]
[1753545440502,9.79687169,3740.7,3740.6,1e-08]
[1753545440708,39.79687169,3740.7,3740.6,1e-08]
[1753545441831,39.79687169,3740.7,3740.6,0.92790001]
[1753545442243,39.79687169,3740.7,3740.6,1e-08]
[1753545442597,9.79687169,3740.7,3740.6,1e-08]
[1753545442798,39.79687169,3740.7,3740.6,1e-08]
[1753545443137,39.94730726,3740.7,3740.6,1e-08]
[1753545443435,46.03108307,3740.7,3740.6,1e-08]
[1753545447542,16.03108307,3740.7,3740.6,1e-08]
[1753545447945,46.03108307,3740.7,3740.6,1e-08]
[1753545449566,37.76730726,3740.7,3740.6,1e-08]
[1753545449751,40.67730726,3740.7,3740.6,1e-08]
[1753545449924,41.22730726,3740.7,3740.6,1e-08]
[1753545450444,40.67730726,3740.7,3740.6,1e-08]
[1753545450765,41.22730726,3740.7,3740.6,1e-08]
[1753545451459,45.51900726,3740.7,3740.6,1e-08]
[1753545453764,52.57900726,3740.7,3740.6,1e-08]
[1753545454565,3.22365381,3740.2,3740.1,0.001]
[1753545454864,3.22365381,3740.2,3740.0,0.001]
[1753545454865,36.2237253,3740.1,3740.0,1e-08]
[1753545455034,37.1294253,3740.1,3740.0,1e-08]
[1753545455435,6.22415429,3739.5,3739.3,0.9289]
[1753545455637,39.41361012,3739.5,3739.3,0.9289]
[1753545455858,39.54721012,3739.5,3739.4,0.453]
[1753545456164,39.54721012,3739.5,3739.4,0.9289]
[1753545456766,39.54721012,3739.5,3739.4,0.001]
[1753545457175,38.79775429,3739.5,3739.4,0.9289]
[1753545458051,35.80775429,3739.5,3739.4,0.9289]
[1753545458252,38.24775429,3739.5,3739.4,1.7564]
[1753545458451,38.79775429,3739.5,3739.4,0.9289]
[1753545460048,33.1336,3739.5,3739.4,1.7174]
[1753545460245,5.5746,3739.5,3739.4,1.7174]
[1753545460469,6.1246,3739.5,3739.4,1.7174]
[1753545462196,3.6836,3739.5,3739.4,1.7174]
[1753545462501,6.1246,3739.5,3739.4,1.7174]
[1753545462902,8.79875429,3739.5,3739.4,1.7174]
[1753545463399,6.1246,3739.5,3739.4,1.7174]
[1753545464701,8.79875429,3739.5,3739.4,1.7174]
[1753545465077,8.79875429,3739.5,3739.4,0.001]
[1753545465403,39.29475429,3739.5,3739.4,0.001]
[1753545466701,38.79875429,3739.5,3739.4,0.001]
[1753545469205,8.79875429,3739.5,3739.4,0.001]
[1753545469524,39.29475429,3739.5,3739.4,0.001]
[1753545471014,38.79875429,3739.5,3739.4,0.001]
[1753545471513,43.6628301,3739.5,3739.4,0.001]
[1753545471810,44.1021301,3739.5,3739.4,0.001]
[1753545472019,44.8723301,3739.5,3739.4,0.001]
[1753545472228,44.4330301,3739.5,3739.4,0.001]
[1753545472408,44.8723301,3739.5,3739.4,0.001]
[1753545472598,44.8723301,3739.5,3739.4,1e-08]
[1753545473313,3.55,3739.4,3738.4,0.4921]
[1753545473624,41.49638771,3739.0,3738.4,0.4921]
[1753545473842,47.79238771,3739.0,3738.4,0.4921]
[1753545474190,48.72768771,3739.0,3738.4,0.4921]
[1753545474602,43.9203119,3739.0,3738.3,0.4931]
[1753545474895,44.3596119,3739.0,3738.3,0.9496]
[1753545475091,44.3596119,3739.0,3738.3,0.4575]
[1753545475406,43.9203119,3739.0,3738.4,0.4921]
[1753545475606,43.9203119,3739.0,3738.3,0.9496]
[1753545475833,43.9203119,3739.0,3738.4,0.4921]
[1753545476015,43.4243119,3739.0,3738.3,0.001]
[1753545476325,43.4243119,3739.0,3738.7,0.4931]
[1753545476694,43.9203119,3739.0,3738.7,0.001]
[1753545476891,13.9203119,3739.0,3738.7,0.001]
[1753545477093,41.4793119,3739.0,3738.7,0.001]
[1753545477296,43.9203119,3739.0,3738.7,0.001]
[1753545479103,41.4793119,3739.0,3738.7,0.001]
[1753545479608,42.6541119,3739.0,3738.9,0.9496]
[1753545479812,43.1501119,3739.0,3738.9,0.001]
[1753545480043,43.5894119,3739.0,3738.9,0.001]
[1753545480402,43.1501119,3739.0,3738.9,0.001]
[1753545480732,40.2131119,3739.0,3738.9,0.001]
[1753545480925,42.6541119,3739.0,3738.9,0.9496]
[1753545481321,42.6551119,3739.0,3738.9,0.9496]
[1753545482219,42.6551119,3739.0,3738.9,0.001]
[1753545484558,43.9825119,3739.0,3738.9,0.001]
[1753545484857,44.67195074,3739.0,3738.9,0.001]
[1753545485938,44.67192688,3739.0,3738.9,0.001]
[1753545486236,44.4218119,3739.0,3738.9,0.001]
[1753545487548,14.4218119,3739.0,3738.9,0.001]
[1753545487736,44.4218119,3739.0,3738.9,0.001]
[1753545488282,37.0561265,3738.7,3738.6,0.001]
[1753545488464,43.86520231,3738.7,3738.6,0.001]
[1753545488618,44.49480231,3738.7,3738.6,0.001]
[1753545488824,44.93410231,3738.7,3738.6,0.001]
[1753545489421,45.18405429,3738.7,3738.6,0.001]
[1753545489652,45.18405428,3738.7,3738.6,0.001]
[1753545489830,44.74475428,3738.7,3738.6,0.001]
[1753545490030,45.18405428,3738.7,3738.6,0.001]
[1753545490234,44.93410231,3738.7,3738.6,0.001]
[1753545490452,45.18403278,3738.7,3738.6,0.001]
[1753545490619,36.22494115,3738.4,3738.3,0.001]
[1753545490825,38.80054115,3738.4,3738.3,0.001]
[1753545491148,9.73584115,3738.4,3738.3,0.001]
[1753545491338,41.41996007,3738.2,3738.1,0.001]
[1753545491527,43.99556007,3738.2,3738.1,0.001]
[1753545491727,44.49156007,3738.2,3738.1,0.001]
[1753545493068,36.22515582,3738.1,3738.0,0.001]
[1753545493249,38.66715582,3738.1,3738.0,0.001]
[1753545494198,36.22515582,3738.1,3738.0,0.9074]
[1753545494363,38.66715582,3738.1,3738.0,0.9074]
[1753545494569,38.66715582,3738.1,3738.0,0.001]
[1753545494773,39.14185582,3738.1,3738.0,0.001]
[1753545495105,39.91025582,3738.1,3738.0,0.001]
[1753545496352,36.22515582,3738.1,3738.0,0.001]
[1753545496590,38.66715582,3738.1,3738.0,0.9074]
[1753545498104,38.66715582,3738.1,3738.0,0.4621]
[1753545498703,38.66715582,3738.1,3738.0,0.001]
[1753545499991,38.67015582,3738.1,3738.0,0.001]
[1753545501067,8.67015582,3738.1,3738.0,0.001]
[1753545501267,38.67015582,3738.1,3738.0,0.001]
[1753545503189,8.67015582,3738.1,3738.0,0.001]
[1753545503491,38.67015582,3738.1,3738.0,0.001]
[1753545504072,39.14485582,3738.1,3738.0,0.001]
[1753545507168,38.67015582,3738.1,3738.0,0.001]
[1753545508404,39.14485582,3738.1,3738.0,0.001]
[1753545510777,38.67015582,3738.1,3738.0,0.001]
[1753545510995,38.66715582,3738.1,3738.0,0.9074]
[1753545511184,35.67515582,3738.1,3738.0,0.9074]
[1753545511384,38.11715582,3738.1,3738.0,0.9074]
[1753545511608,2.443,3738.1,3738.0,0.9074]
[1753545511906,5.993,3738.1,3738.0,1.7321]
[1753545512073,3.0,3738.1,3738.0,1.7321]
[1753545512273,5.443,3738.1,3738.0,1.7321]
[1753545512711,5.993,3738.1,3738.0,1.7321]
[1753545514882,3.55,3738.1,3738.0,1.7321]
[1753545515082,3.55,3738.1,3738.0,4.8480778]
[1753545515415,2.443,3738.1,3738.0,4.8480778]
[1753545517114,0.55,3738.3,3738.0,4.0233778]
[1753545517318,2.443,3738.2,3738.1,1.6996]
[1753545517539,2.443,3738.2,3738.1,0.7932]
[1753545517825,2.443,3738.2,3738.1,1.6996]
[1753545519088,0.1336,3738.4,3738.2,0.7925]
[1753545519284,0.1336,3738.6,3738.4,0.7925]
[1753545519523,5.992,3738.5,3738.4,0.7925]
[1753545520231,5.992,3738.5,3738.4,1.6989]